Posting Date,Expenditure Area,Supplier,Reason for Expense ,Line Net Amount,Expense Type
16-Dec-19,Culture & Environment Services,Aldi 89 776,volunteer refreshments,5.06,Miscellaneous Expenses
16-Dec-19,Culture & Environment Services,Aldi 89 776,volunteer refreshments,12.22,Miscellaneous Expenses
19-Dec-19,Culture & Environment Services,Amazon.Co.Uk,Samsung tablet,165.83,Computer Equipment - Purchase
22-Nov-19,Culture & Environment Services,Amazon.Co.Uk,Oregon Tree Felling Lever for Ranger Team,50.10,Development & Maintenance of Natural Areas
02-Dec-19,Culture & Environment Services,Amazon.Co.Uk,Adult & Junior defib pads,98.40,Equipment / Furniture / Materials
16-Dec-19,Culture & Environment Services,Amazon.Co.Uk,Staple Gun,17.45,Equipment / Furniture / Materials
18-Dec-19,Culture & Environment Services,Amazon.Co.Uk,Christmas air freshners,16.67,Equipment / Furniture / Materials
09-Dec-19,Culture & Environment Services,Amazon.Co.Uk,Athena Hotelware Stacking Cups,19.86,Fixtures & Fittings
10-Dec-19,Culture & Environment Services,Amazon.Co.Uk,2020 diaries,6.15,Miscellaneous Expenses
06-Dec-19,Culture & Environment Services,Amznmktplace,radar keys for shopmobility,31.25,Cleaning Supplies
02-Dec-19,Culture & Environment Services,Amznmktplace,Ice pack covers,3.72,Equipment / Furniture / Materials
02-Dec-19,Culture & Environment Services,Amznmktplace,Various first aid equipment,50.42,Equipment / Furniture / Materials
06-Dec-19,Culture & Environment Services,Amznmktplace,Set of lockers,216.66,Equipment / Furniture / Materials
09-Dec-19,Culture & Environment Services,Amznmktplace,Clock,8.32,Equipment / Furniture / Materials
10-Dec-19,Culture & Environment Services,Amznmktplace,Blue roll holder and a pack of blue rolls,20.82,Equipment / Furniture / Materials
12-Dec-19,Culture & Environment Services,Amznmktplace,replacement door locks and knifes,44.55,Equipment / Furniture / Materials
16-Dec-19,Culture & Environment Services,Amznmktplace,Staples for gun,3.71,Equipment / Furniture / Materials
19-Dec-19,Culture & Environment Services,Amznmktplace,De Icer for Vans,11.91,Equipment / Furniture / Materials
09-Dec-19,Culture & Environment Services,Amznmktplace,Stainless Steal Teasppons x 24,3.32,Fixtures & Fittings
02-Dec-19,Culture & Environment Services,Amznmktplace,Moss/Algae Killer Patio Hard Surface Cleaner,24.12,Materials and Supplies - Miscellaneous
06-Dec-19,Culture & Environment Services,Amznmktplace,Alarm fobs,26.55,Materials and Supplies - Miscellaneous
06-Dec-19,Culture & Environment Services,Amznmktplace,Phone charger,12.07,Materials and Supplies - Miscellaneous
24-Dec-19,Culture & Environment Services,Amznmktplace,key cutting for bin stores,14.45,Materials and Supplies - Miscellaneous
09-Dec-19,Culture & Environment Services,Amznmktplace,Tipp-Ex Correction Fluids,3.73,Stationery
18-Dec-19,Culture & Environment Services,Amznmktplace Amazon.Co.Uk,Car charger adapter,18.71,Direct Transport Costs
09-Dec-19,Culture & Environment Services,Amznmktplace Amazon.Co.Uk,2 hay forks,35.13,Equipment / Furniture / Materials
11-Dec-19,Culture & Environment Services,Amznmktplace Amazon.Co.Uk,Extension Lead/treasury Tags - CHRISTCHURCH HUB,9.16,Materials and Supplies - Miscellaneous
17-Dec-19,Culture & Environment Services,Amznmktplace Amazon.Co.Uk,2 x Koolpak reusable with protective sleeve,4.93,Materials and Supplies - Miscellaneous
17-Dec-19,Culture & Environment Services,Amznmktplace Amazon.Co.Uk,Koolpak deluxe reusable with compress wrap x 4,11.45,Materials and Supplies - Miscellaneous
09-Dec-19,Culture & Environment Services,Amznmktplace Amazon.Co.Uk,2020 office diary,3.87,Miscellaneous Expenses
02-Dec-19,Culture & Environment Services,Amznmktplace Amazon.Co.Uk,Stationery,9.40,Stationery
02-Dec-19,Culture & Environment Services,Anglian Catering Equip,Hire of Freezers for Panto,322.98,Equipment / Furniture / Materials
12-Dec-19,Culture & Environment Services,Arboricultural Associa,Arb Association annual renewal,283.33,Non Contracted_Professional Services
23-Dec-19,Culture & Environment Services,Argos Ipswich Carr Street,Purchase of helium for Christmas Parties,16.66,Equipment / Furniture / Materials
31-Dec-19,Culture & Environment Services,Argos Ltd,LED TV - CHRISTCHURCH HUB,74.99,Materials and Supplies - Miscellaneous
17-Dec-19,Culture & Environment Services,Argos Retail Group,clocks to replace stolen clocks.,25.00,Equipment / Furniture / Materials
31-Dec-19,Culture & Environment Services,Asda Superstore,Food for Panto Rap Party,24.17,Catering/Beverages
18-Dec-19,Culture & Environment Services,B & M Retail,For Spillages for Panto,3.99,Cleaning Supplies
02-Dec-19,Culture & Environment Services,B & M Retail,Quality street for children in panto,24.25,Equipment / Furniture / Materials
05-Dec-19,Culture & Environment Services,B & M Retail,quality street for pantoband,6.67,Equipment / Furniture / Materials
05-Dec-19,Culture & Environment Services,B & M Retail,waste paper bin admin office,2.49,Equipment / Furniture / Materials
10-Dec-19,Culture & Environment Services,B & M Retail,Christmas tree lights and decorations,13.32,Equipment / Furniture / Materials
10-Dec-19,Culture & Environment Services,B & M Retail,Panto box for post,5.23,Equipment / Furniture / Materials
10-Dec-19,Culture & Environment Services,B & M Retail,sticky strips for panto bars,7.06,Equipment / Furniture / Materials
16-Dec-19,Culture & Environment Services,B & M Retail,Chopping boards,4.15,Equipment / Furniture / Materials
16-Dec-19,Culture & Environment Services,B & M Retail,Matches for door handle,0.46,Equipment / Furniture / Materials
18-Dec-19,Culture & Environment Services,B & M Retail,Air freshners and batteries,16.64,Equipment / Furniture / Materials
31-Dec-19,Culture & Environment Services,B & M Retail,Food for panto wrap party,8.73,Equipment / Furniture / Materials
31-Dec-19,Culture & Environment Services,B & M Retail,Ketchup for hot dogs during panto,4.32,Equipment / Furniture / Materials
11-Oct-19,Culture & Environment Services,B & Q 1315,Tree Team - supplies,14.12,Materials and Supplies - Miscellaneous
03-Dec-19,Culture & Environment Services,B & Q 1315,Sprayer for Crown Pools & Clamp for van - CHRISTCHURCH HUB,25.66,Materials and Supplies - Miscellaneous
24-Dec-19,Culture & Environment Services,B & Q 1315,Rust-Oleum 400ml - Landscape Team,15.00,Miscellaneous Stock  - Purchases
13-Dec-19,Culture & Environment Services,B&q Direct,"Equipment to repaint BDM posts - paint, sand paper, PPE.",19.14,Equipment / Furniture / Materials
17-Dec-19,Culture & Environment Services,B&q Direct,"brushes, gloss and sander for equipment repairs.",56.97,Equipment / Furniture / Materials
23-Dec-19,Culture & Environment Services,B&q Direct,Spray paint to repaint badminton posts,10.83,Equipment / Furniture / Materials
11-Dec-19,Culture & Environment Services,Bag Agg Ltd,Ballast - CCP BENCH BASE - Landscape Team,25.00,Miscellaneous Stock  - Purchases
12-Dec-19,Culture & Environment Services,Baker Ross,Christmas Hols eqp.,13.19,Equipment / Furniture / Materials
02-Dec-19,Culture & Environment Services,Booker Limited Ipswich,Drinks for Bars,437.77,Catering/Beverages
04-Dec-19,Culture & Environment Services,Booker Limited Ipswich,"drinks for bars, food for elections",90.72,Catering/Beverages
04-Dec-19,Culture & Environment Services,Booker Limited Ipswich,"drinks for bars, food for elections",39.03,Catering/Beverages
04-Dec-19,Culture & Environment Services,Booker Limited Ipswich,"drinks for bars, food for elections",76.33,Catering/Beverages
05-Dec-19,Culture & Environment Services,Booker Limited Ipswich,Drinks for Bars and Hot dogs for Regent,107.91,Catering/Beverages
05-Dec-19,Culture & Environment Services,Booker Limited Ipswich,Drinks for Bars and Hot dogs for Regent,175.50,Catering/Beverages
12-Dec-19,Culture & Environment Services,Booker Limited Ipswich,Hot Dogs etc for regent,67.68,Catering/Beverages
12-Dec-19,Culture & Environment Services,Booker Limited Ipswich,Hot Dogs etc for regent,120.09,Catering/Beverages
19-Dec-19,Culture & Environment Services,Booker Limited Ipswich,"Drinks for Corny Bars, hot dogs for regent",67.27,Catering/Beverages
19-Dec-19,Culture & Environment Services,Booker Limited Ipswich,"Drinks for Corny Bars, hot dogs for regent",172.22,Catering/Beverages
23-Dec-19,Culture & Environment Services,Booker Limited Ipswich,Food for Panto Rap Party,15.57,Catering/Beverages
23-Dec-19,Culture & Environment Services,Booker Limited Ipswich,Food for Panto Rap Party,109.57,Catering/Beverages
16-Dec-19,Culture & Environment Services,Booker Limited Ipswich,Sundries for Waste Services,19.17,Materials and Supplies - Miscellaneous
06-Dec-19,Culture & Environment Services,Bunzl,Cleaning supplies and blue roll,49.32,Cleaning Supplies
09-Dec-19,Culture & Environment Services,Bunzl,toilet roll and cleaning supplies Old foundry road toilets,332.80,Cleaning Supplies
12-Dec-19,Culture & Environment Services,Bunzl,toilet roll and cleaning supplies Holy wells park,178.81,Cleaning Supplies
06-Dec-19,Culture & Environment Services,Card Factory,Balloon Weights - Xmas Parties,3.79,Equipment / Furniture / Materials
09-Dec-19,Culture & Environment Services,Ced,Giles Tree,339.66,Miscellaneous Stock  - Purchases
16-Dec-19,Culture & Environment Services,Clarke Fencing Ltd,timber posts and fixings,338.39,Materials and Supplies - Miscellaneous
11-Dec-19,Culture & Environment Services,Cobblers And Keys Ltd,Keys,17.92,Materials and Supplies - Miscellaneous
10-Dec-19,Culture & Environment Services,Collier&catchpole,Geotextile Multitrack - DUMBARTON REC - Landscape Team,194.03,Miscellaneous Stock  - Purchases
09-Dec-19,Culture & Environment Services,Cpw Locksmiths And Securi,Update Stage Keys as checked and 4 out of date,21.00,Equipment / Furniture / Materials
13-Dec-19,Culture & Environment Services,Cpw Locksmiths And Securi,key cutting for bin stores,30.00,Materials and Supplies - Miscellaneous
03-Dec-19,Culture & Environment Services,Defib Pad,Additional De fib pads so one set on one set spare,43.00,Equipment / Furniture / Materials
18-Dec-19,Culture & Environment Services,Dobbies,Various flowers/plants - CHRISTCHURCH HUB,77.00,Materials and Supplies - Miscellaneous
26-Dec-19,Culture & Environment Services,Dulux Decorator Centre,Gloss tinted paint for Fencing - Play Area Inspector,58.05,Equipment / Furniture / Materials
13-Dec-19,Culture & Environment Services,Dvla Vehicle Tax,Vehicle Tax for AV58 WMA,262.50,Direct Transport Costs
13-Dec-19,Culture & Environment Services,Dvla Vehicle Tax,Vehicle tax for AV58 WME,262.50,Direct Transport Costs
13-Dec-19,Culture & Environment Services,Dvla Vehicle Tax,Vehicle tax for AV61 XLX,262.50,Direct Transport Costs
13-Dec-19,Culture & Environment Services,Dvla Vehicle Tax,Vehicle Tax for LB67 MHX,262.50,Direct Transport Costs
30-Dec-19,Culture & Environment Services,Dvla Vehicle Tax,Vehicle Tax for AV61 XLE,262.50,Direct Transport Costs
13-Dec-19,Culture & Environment Services,Dvla Vehicle Tax,Vehicle Tax for AP57 VJZ,262.50,Parks Vehicle Costs
13-Dec-19,Culture & Environment Services,Dvla Vehicle Tax,Vehicle Tax for AP57 VKO,262.50,Parks Vehicle Costs
13-Dec-19,Culture & Environment Services,Dvla Vehicle Tax,Vehicle Tax for AV55 GLF,167.50,Parks Vehicle Costs
13-Dec-19,Culture & Environment Services,Dvla Vehicle Tax,Vehicle Tax for EG68 OEW,262.50,Parks Vehicle Costs
13-Dec-19,Culture & Environment Services,Dvla Vehicle Tax,Vehicle Tax for EG68 OFO,262.50,Parks Vehicle Costs
13-Dec-19,Culture & Environment Services,Dvla Vehicle Tax,Vehicle Tax for EG68 SPZ,262.50,Parks Vehicle Costs
13-Dec-19,Culture & Environment Services,Dvla Vehicle Tax,Vehicle tax for EG68 SRO,262.50,Parks Vehicle Costs
13-Dec-19,Culture & Environment Services,Dvla Vehicle Tax,Vehicle Tax for EG68 SRU,262.50,Parks Vehicle Costs
13-Dec-19,Culture & Environment Services,Dvla Vehicle Tax,Vehicle Tax for EG68 SRV,262.50,Parks Vehicle Costs
13-Dec-19,Culture & Environment Services,Dvla Vehicle Tax,Vehicle Tax for NA14 XUS,262.50,Parks Vehicle Costs
20-Dec-19,Culture & Environment Services,Eb *herpetofauna Worke,place for volunteer at conference,115.00,Training Expenses
11-Dec-19,Culture & Environment Services,Euro Car Parts P,Oil,30.41,Parks Vehicle Costs
11-Dec-19,Culture & Environment Services,Euro Car Parts P,Oil,30.41,Parks Vehicle Costs
03-Dec-19,Culture & Environment Services,Fitness Music,Aqua Fit Music,27.28,Equipment / Furniture / Materials
06-Dec-19,Culture & Environment Services,Halfords 0883,Oil & Screen wash - Landscape Team,18.75,Parks Vehicle Costs
05-Dec-19,Culture & Environment Services,Hg Gladwell & Sons,Bird food for Holywells Park Reception,63.10,Materials and Supplies - Miscellaneous
17-Dec-19,Culture & Environment Services,Honey Brothers Ltd,"Visor, boots, chainsaw gloves",316.52,Clothing / Uniform & Laundry
04-Dec-19,Culture & Environment Services,Horticultural Sppls Ltd,Material for Tree Planting - CHANTRY PARK,22.89,Materials and Supplies - Miscellaneous
10-Dec-19,Culture & Environment Services,Horticultural Sppls Ltd,Pruners/pruning saw/broom - CHRISTCHURCH HUB,23.25,Materials and Supplies - Miscellaneous
16-Dec-19,Culture & Environment Services,Indespension,clip for digger - Landscape Team,1.87,Miscellaneous Stock  - Purchases
16-Dec-19,Culture & Environment Services,Ipswich Plastics Ltd,Noticeboard/Adhesive - WILDLIFE RANGERS,228.64,Materials and Supplies - Miscellaneous
04-Dec-19,Culture & Environment Services,Ipswich Tourist In,Hampers pro dancers,76.63,Equipment / Furniture / Materials
09-Dec-19,Culture & Environment Services,Ipswich Tourist In,Card panto cast,1.25,Equipment / Furniture / Materials
23-Dec-19,Culture & Environment Services,Ipswich Tourist In,Extra hamper for panto,12.36,Equipment / Furniture / Materials
04-Dec-19,Culture & Environment Services,J P Lennard Ltd,Whistles and wrist bands.,64.65,Equipment / Furniture / Materials
30-Dec-19,Culture & Environment Services,Johnsons,Dry Cleaning,16.67,Clothing / Uniform & Laundry
09-Dec-19,Culture & Environment Services,Kings,Purchase of keys for new starter,21.87,Materials and Supplies - Miscellaneous
04-Dec-19,Culture & Environment Services,Kings,Keys cut for containers - Landscape Team,12.50,Miscellaneous Stock  - Purchases
18-Dec-19,Culture & Environment Services,Ladybird Nurseries,Various flowers/plants - CHRISTCHURCH HUB,111.83,Materials and Supplies - Miscellaneous
20-Dec-19,Culture & Environment Services,Leisureteq,pool repair parts,329.85,Equipment / Furniture / Materials
16-Dec-19,Culture & Environment Services,Live 4 Soccer,New AWA goals.,859.12,Equipment / Furniture / Materials
04-Dec-19,Culture & Environment Services,Lumberjacks,Tree stakes & nails - TREE PLANTING IN CHANTRY PARK,29.00,Materials and Supplies - Miscellaneous
06-Dec-19,Culture & Environment Services,Lumberjacks,P/Stakes - CHRISTCHURCH HUB,20.64,Materials and Supplies - Miscellaneous
02-Dec-19,Culture & Environment Services,Lumberjacks,Timber/Pegs - WHITTON LANE ALLOTMENTS,26.47,Miscellaneous Stock  - Purchases
09-Dec-19,Culture & Environment Services,Lumberjacks,Post Mix - WHITTON CHURCH LANE ALLOTMENTS,24.27,Miscellaneous Stock  - Purchases
16-Dec-19,Culture & Environment Services,Lumberjacks,Material for bench installation - Landscape Team,35.27,Miscellaneous Stock  - Purchases
16-Dec-19,Culture & Environment Services,Lumberjacks,Post Mix for ramps - WHITTON ALLOTMENTS,90.21,Miscellaneous Stock  - Purchases
17-Dec-19,Culture & Environment Services,Lumberjacks,Timber/hammer - BENCH INSTALLATION ALEXANDRA PARK,36.18,Miscellaneous Stock  - Purchases
20-Dec-19,Culture & Environment Services,Lumberjacks,Posts - Landscape Team,28.13,Miscellaneous Stock  - Purchases
03-Dec-19,Culture & Environment Services,Machine Mart Ltd,Cleansing equipment,99.98,Equipment / Furniture / Materials
16-Dec-19,Culture & Environment Services,Marks&spencer Plc,Event staff welfare,27.21,Catering/Beverages
06-Dec-19,Culture & Environment Services,Martin McColl,Batteries for rowing machine,3.49,Equipment / Furniture / Materials
05-Dec-19,Culture & Environment Services,Millets,Purchase of safety boots for Parking services Staff Member,44.62,Clothing / Uniform & Laundry
05-Dec-19,Culture & Environment Services,My Tool Shed,20 bowsaw blades,63.00,Equipment / Furniture / Materials
23-Dec-19,Culture & Environment Services,N/A,Chantry Park drinking water after burst mains pipe,"1,000.00",Equipment / Furniture / Materials
23-Dec-19,Culture & Environment Services,N/A,Chantry Park drinking water burst water main,"1,000.00",Materials and Supplies - Miscellaneous
23-Dec-19,Culture & Environment Services,N/A,Chantry park drinking water burst water main,352.60,Miscellaneous Stock  - Purchases
19-Dec-19,Culture & Environment Services,Net World Sports,Equipment for Community Games,237.23,Specific Campaigns / Projects expenditure
09-Dec-19,Culture & Environment Services,Paypal,Items for Panto press night,12.50,Catering/Beverages
02-Dec-19,Culture & Environment Services,Paypal,Booster seats - adults,33.71,Equipment / Furniture / Materials
22-Oct-19,Culture & Environment Services,Paypal,Tree Team - supplies,28.30,Materials and Supplies - Miscellaneous
09-Dec-19,Culture & Environment Services,Paypal,replacement lamp,11.25,Miscellaneous Expenses
04-Dec-19,Culture & Environment Services,Post Office Counter,Vouchers for panto,293.47,Equipment / Furniture / Materials
06-Dec-19,Culture & Environment Services,Poundland Ltd 1719,Double sided tape - Xmas parties,1.67,Equipment / Furniture / Materials
12-Dec-19,Culture & Environment Services,Poundland Ltd 1719,Double sided tape/pins/pompoms - Xmas Party,3.33,Equipment / Furniture / Materials
18-Dec-19,Culture & Environment Services,Protect Direct,safety boots and gloves,43.44,Equipment / Furniture / Materials
24-Dec-19,Culture & Environment Services,Ram-Mount.Co.Uk,tablet mounts,99.92,Direct Transport Costs
12-Dec-19,Culture & Environment Services,Ryman,Card,12.49,Stationery
16-Dec-19,Culture & Environment Services,Ryman,White Card,12.49,Stationery
02-Dec-19,Culture & Environment Services,Sainsburys S/mkt,Lemons,5.00,Catering/Beverages
24-Dec-19,Culture & Environment Services,Sainsburys S/mkt,N/A wine for xmas parties arrival drinks,16.54,Catering/Beverages
10-Dec-19,Culture & Environment Services,Sainsburys S/mkt,Sundries for Waste Services,1.83,Materials and Supplies - Miscellaneous
19-Dec-19,Culture & Environment Services,Sainsburys S/mkt,Sundries for Waste Services,4.25,Materials and Supplies - Miscellaneous
04-Dec-19,Culture & Environment Services,Sainsburys S/mkts,Lemons for bars,6.25,Catering/Beverages
09-Dec-19,Culture & Environment Services,Sainsburys S/mkts,Ukelele Orchestra Rider Requirements,4.33,Catering/Beverages
09-Dec-19,Culture & Environment Services,Sainsburys S/mkts,Ukelele Orchestra Rider Requirements,6.31,Catering/Beverages
11-Dec-19,Culture & Environment Services,Sainsburys S/mkts,Black Pepper,2.08,Catering/Beverages
13-Dec-19,Culture & Environment Services,Sainsburys S/mkts,Hi-viz sweatshirt,13.33,Clothing / Uniform & Laundry
05-Dec-19,Culture & Environment Services,Sainsburys S/mkts,Sundries for Waste Services,14.79,Materials and Supplies - Miscellaneous
26-Dec-19,Culture & Environment Services,Sainsburys S/mkts,Sundries for Waste Services,1.96,Materials and Supplies - Miscellaneous
03-Dec-19,Culture & Environment Services,Screwfix Dir. Ltd,De-icer for company vehicle - Landscape Team,13.30,Direct Transport Costs
19-Dec-19,Culture & Environment Services,Screwfix Dir. Ltd,Door Stop - CHRISTCHURCH HUB,6.90,Materials and Supplies - Miscellaneous
02-Dec-19,Culture & Environment Services,Screwfix Dir. Ltd,Security post/rawplugs/bolts - CCP BOLLARDS - Landscape Team,159.77,Miscellaneous Stock  - Purchases
03-Dec-19,Culture & Environment Services,Screwfix Dir. Ltd,Jerry Can for JCB - Landscape Team,21.65,Miscellaneous Stock  - Purchases
06-Dec-19,Culture & Environment Services,Screwfix Dir. Ltd,Security Posts - CCP - Landscape Team,33.32,Miscellaneous Stock  - Purchases
11-Dec-19,Culture & Environment Services,Screwfix Dir. Ltd,Rawplugs - CCP - Landscape Team,7.07,Miscellaneous Stock  - Purchases
16-Dec-19,Culture & Environment Services,Screwfix Dir. Ltd,Various material for bench installation - Alexandra Park,40.62,Miscellaneous Stock  - Purchases
02-Dec-19,Culture & Environment Services,Screwfix Direct,repair parts,79.50,Equipment / Furniture / Materials
04-Dec-19,Culture & Environment Services,Screwfix Direct,Trolley ,47.49,Equipment / Furniture / Materials
20-Dec-19,Culture & Environment Services,Signs For You Ltd,Signage for the Leaf yard - CHRISTCHURCH HUB,32.85,Materials and Supplies - Miscellaneous
19-Dec-19,Culture & Environment Services,Sportsdirect 366,Safety boots ,49.98,Clothing / Uniform & Laundry
18-Dec-19,Culture & Environment Services,Sproughton Garden Machine,Chain Oil - CHRISTCHURCH HUB,41.79,Materials and Supplies - Miscellaneous
20-Dec-19,Culture & Environment Services,Stringerswo,Rackets for Community Games events.,28.46,Specific Campaigns / Projects expenditure
30-Dec-19,Culture & Environment Services,Suffolk Food Hall,Various flowers/plants - CHRISTCHURCH HUB,28.96,Materials and Supplies - Miscellaneous
12-Dec-19,Culture & Environment Services,Tesco Store 2748, CD for Christmas Hols activities.,9.17,Equipment / Furniture / Materials
16-Dec-19,Culture & Environment Services,Tesco Store 2748,refreshments for volunteer event,22.74,Miscellaneous Expenses
17-Dec-19,Culture & Environment Services,Tesco Store 2748,volunteers' Christmas meal ingredients,114.74,Miscellaneous Expenses
18-Dec-19,Culture & Environment Services,Tesco Store 2748,volunteers' Christmas meal ingredients,11.85,Miscellaneous Expenses
03-Dec-19,Culture & Environment Services,Tesco Store 3240,"Food for Shopmo Party, Arrival drink for parties, pastry for",21.83,Catering/Beverages
03-Dec-19,Culture & Environment Services,Tesco Store 3240,"Food for Shopmo Party, Arrival drink for parties, pastry for",70.00,Catering/Beverages
03-Dec-19,Culture & Environment Services,Tesco Store 3240,"Food for Shopmo Party, Arrival drink for parties, pastry for",28.92,Catering/Beverages
05-Dec-19,Culture & Environment Services,Tesco Store 3240,"Food for conference 51211, lemons for bars 4.50",68.54,Catering/Beverages
13-Dec-19,Culture & Environment Services,Tesco Store 3240,"Food for elections, arrival drinks for parties etc",185.00,Catering/Beverages
13-Dec-19,Culture & Environment Services,Tesco Store 3240,"Food for elections, arrival drinks for parties etc",27.08,Catering/Beverages
13-Dec-19,Culture & Environment Services,Tesco Store 3240,"Food for elections, arrival drinks for parties etc",54.72,Catering/Beverages
16-Dec-19,Culture & Environment Services,Tesco Store 3240,Items for Panto Press Night,165.73,Catering/Beverages
17-Dec-19,Culture & Environment Services,Tesco Store 3240,"Arrival drinks for xmas parties, lemons for bars",39.17,Catering/Beverages
17-Dec-19,Culture & Environment Services,Tesco Store 3240,"Arrival drinks for xmas parties, lemons for bars",6.00,Catering/Beverages
31-Dec-19,Culture & Environment Services,Tesco Store 3240,Food for Panto Wrap Party,170.20,Catering/Beverages
19-Dec-19,Culture & Environment Services,The Range,Arts and Crafts for Christmas Activity,7.88,Equipment / Furniture / Materials
31-Dec-19,Culture & Environment Services,The Windscreen Co,1/4 glass replacement av13 ops,474.00,Direct Transport Costs
04-Dec-19,Culture & Environment Services,The Works,4 hamper baskets for pro dancers,13.50,Equipment / Furniture / Materials
06-Dec-19,Culture & Environment Services,The Works,Paint - Xmas Parties,3.50,Equipment / Furniture / Materials
11-Dec-19,Culture & Environment Services,The Works,Diaries for Box Office,4.17,Stationery
02-Dec-19,Culture & Environment Services,Toms Tree Ties,Sproughton tree materials,261.00,Miscellaneous Stock  - Purchases
02-Dec-19,Culture & Environment Services,Toolstation Ltd,Van straps - CHRISTCHURCH HUB,13.75,Materials and Supplies - Miscellaneous
17-Dec-19,Culture & Environment Services,Toolstation Ltd,Wood Screws - WHITTON ALLOTMENTS,5.54,Miscellaneous Stock  - Purchases
13-Dec-19,Culture & Environment Services,Town & Tea,Meeting sundries,93.49,Catering/Beverages
16-Dec-19,Culture & Environment Services,Tp Ipswich,Material for Ramp - WHITTON ALLOTMENTS,50.52,Miscellaneous Stock  - Purchases
06-Dec-19,Culture & Environment Services,Trainline,Train fare ,26.05,Use Of Public Transport
09-Dec-19,Culture & Environment Services,Tvlicensing.Co.Uk,TV Licence,128.75,Licences & Other Fees
02-Dec-19,Culture & Environment Services,Victoria Nurseries,x2 Pots & Compost - CHRISTCHURCH HUB,87.50,Materials and Supplies - Miscellaneous
04-Dec-19,Culture & Environment Services,Victoria Nurseries,Chemicals - CHRISTCHURCH HUB,10.83,Materials and Supplies - Miscellaneous
04-Dec-19,Culture & Environment Services,Viking Uk,Flip Chart Stands x 2,139.98,Equipment / Furniture / Materials
12-Dec-19,Culture & Environment Services,Viking Uk,Kettles and Jugs.,49.14,Equipment / Furniture / Materials
17-Dec-19,Culture & Environment Services,Waitrose 632,volunteers' Christmas meal ingredients,19.90,Miscellaneous Expenses
20-Dec-19,Culture & Environment Services,Waitrose Ltd,Event Welfare,14.75,Catering/Beverages
20-Dec-19,Culture & Environment Services,Wh Smith,Purchase of diaries,13.11,Materials and Supplies - Miscellaneous
30-Dec-19,Culture & Environment Services,Wh Smith,Marker Pens for the Market,3.98,Premises Costs - Miscellaneous
04-Dec-19,Culture & Environment Services,Wickes Ipswich,Galvanised Nails - TREE PLANTING - Chantry Hub,3.14,Materials and Supplies - Miscellaneous
12-Dec-19,Culture & Environment Services,Wickes Ipswich,Slabs - SPRITES SCHOOL - Chantry Hub,11.08,Materials and Supplies - Miscellaneous
19-Dec-19,Culture & Environment Services,Wickes Ipswich,Pruning saw & Tree ties - CHNATRY HUB,18.75,Materials and Supplies - Miscellaneous
24-Dec-19,Culture & Environment Services,Wickes Ipswich,Bags of Sand - CHANTRY - Landscape Team,6.33,Miscellaneous Stock  - Purchases
06-Dec-19,Culture & Environment Services,Wilko Retail Limited,Weight Buckets x 2 Fabric foam for red chairs,20.50,Equipment / Furniture / Materials
09-Dec-19,Culture & Environment Services,Wilko Retail Limited,Batteries ,3.12,Equipment / Furniture / Materials
17-Dec-19,Culture & Environment Services,Wilko Retail Limited,Various supplies for Ark building - PARK PATROL,10.08,Materials and Supplies - Miscellaneous
02-Dec-19,Culture & Environment Services,Wilko.Com,Spray paint - Christmas parties 2019,12.92,Equipment / Furniture / Materials
06-Nov-19,Culture & Environment Services,Www.Banneruk.Com,stationary,177.69,Stationery
28-Nov-19,Culture & Environment Services,Www.Banneruk.Com,stationary,52.86,Stationery
04-Dec-19,Culture & Environment Services,Www.Banneruk.Com,Stationery Order,9.68,Stationery
13-Dec-19,Culture & Environment Services,Www.Bunzlcleaningsuppl,Cleaning products for Ransomes,196.43,Cleaning Supplies
17-Dec-19,Culture & Environment Services,Www.Bunzlcleaningsuppl,For Pantomime spillages or fluids,72.18,Cleaning Supplies
17-Dec-19,Culture & Environment Services,Www.Expertfitnessuk.Co,Concept 2 rowing machine foot straps ( 2 sets / 2 machines ),21.92,Equipment / Furniture / Materials
12-Dec-19,Culture & Environment Services,Www.Filmbank.Co.Uk,Filmbank Fee - Bohemian Rhapsody (40% ticket sales),"1,183.67",Non Contracted_Professional Services
10-Dec-19,Culture & Environment Services,Www.Fta.Co.Uk,Re-torque tags for refuse and cleasing,104.34,Direct Transport Costs
17-Dec-19,Culture & Environment Services,Www.Fta.Co.Uk,Retorque tags for refuse,-4.70,Direct Transport Costs
02-Dec-19,Culture & Environment Services,Www.Graniteworkwear.Com, High Vis Hooded Sweatshirt,93.35,Materials and Supplies - Miscellaneous
04-Dec-19,Culture & Environment Services,Www.Joeandsephs.Co.Uk,Popcorn for panto,"1,059.85",Catering/Beverages
26-Nov-19,Culture & Environment Services,Www.Lifesaversdirect,RLSS,3.33,Training/Courses Running Costs
26-Nov-19,Culture & Environment Services,Www.Lifesaversdirect,training costs,197.46,Training/Courses Running Costs
02-Dec-19,Culture & Environment Services,Www.Nisbets.Com,Sterilsing tablets for election bottles,100.47,Cleaning Supplies
18-Dec-19,Culture & Environment Services,Www.Nisbets.Com,Plungers in Sinks,15.43,Cleaning Supplies
10-Dec-19,Culture & Environment Services,Www.Nisbets.Com,Glasses for bars,77.10,Equipment / Furniture / Materials
04-Dec-19,Culture & Environment Services,Www.Panelwarehouse.Com,Jumbo Display Boards for Elections (Vinnecombe Court),632.00,Equipment / Furniture / Materials
03-Dec-19,Culture & Environment Services,Www.Tudorenvironmental,Eco Plug Tree Stump control,536.00,Materials and Supplies - Miscellaneous
12-Dec-19,Culture & Environment Services,Www.Weddingmall.Co.Uk,Lily Vases - Xmas Parties,49.05,Equipment / Furniture / Materials
24-Dec-19,Development,Amznmktplace,laminator,20.82,Equipment / Furniture / Materials
16-Dec-19,Development,Fast Key Services Limi,wooden locker keys,6.05,Fixtures & Fittings
04-Dec-19,Development,Halfords 0883,remote controller battery,3.08,Fixtures & Fittings
12-Dec-19,Development,Horizon Environment Sr,pest control,49.75,Premises Costs - Miscellaneous
09-Dec-19,Development,J P Chick & Partne, Interim Structural Report,680.00,Capital Expenditure
03-Dec-19,Development,Psa Parts,Camera Battery MN,11.99,Computer Software - Maintenance
19-Dec-19,Development,Rics Subs UK Cybs, subs,127.00,Employee Expenses
20-Dec-19,Development,Safetyshop,Safety signage for sites (Safety Shop),322.79,Equipment / Furniture / Materials
06-Dec-19,Development,The Range,Clothes bags for shower room,17.45,Equipment / Furniture / Materials
16-Dec-19,Development,The Society For The Prote,SPAB membership renewal,51.00,Publications - Subscriptions
11-Dec-19,Development,"Www,eastsuffolk.Gov.Uk",Partnership Inspections Bells Drift,96.00,Non Contracted_Professional Services
20-Dec-19,Development,"Www,eastsuffolk.Gov.Uk",Partnership Inspections Oak Cottage,80.00,Non Contracted_Professional Services
06-Dec-19,Development,Www.Banneruk.Com,Velcro pads for Local Plan Exhibition,4.13,Stationery
12-Dec-19,Development,Www.Banneruk.Com,String for site notices,8.68,Stationery
26-Dec-19,Development,Www.Banneruk.Com,Laminating pouches (Enforcement),36.34,Stationery
09-Dec-19,Development,Www.Ciob.Org.Uk,CIOB membership,253.00,Employee Expenses
09-Dec-19,Development,Www.Ciob.Org.Uk,CIOB membership,294.00,Employee Expenses
09-Dec-19,Development,Www.Ciob.Org.Uk,CIOB membership,294.00,Employee Expenses
09-Dec-19,Development,Www.Ciob.Org.Uk,CIOB membership,294.00,Employee Expenses
02-Dec-19,Development,Www.Sackers .Co.Uk,waste removal,300.00,Removal/Emptying of Waste
17-Dec-19,Development,Www.Westminster-Briefi,Westminister Briefing ,295.00,Training Expenses
10-Dec-19,Finance & Revenues,Acca,ACCA Membership ,258.00,Employee Expenses
19-Dec-19,Finance & Revenues,Acca,ACCA Membership Subscription ,258.00,Employee Expenses
19-Dec-19,Finance & Revenues,Acca,ACCA Membership Subscription ,258.00,Employee Expenses
19-Dec-19,Finance & Revenues,Acca,ACCA Subscription Membership ,258.00,Employee Expenses
18-Dec-19,Finance & Revenues,Amazon.Co.Uk,Room 2C projector,29.17,Computer Equipment - Purchase
09-Dec-19,Finance & Revenues,Amzn Digital,laptop locks x 3,16.26,Equipment / Furniture / Materials
18-Dec-19,Finance & Revenues,Amznmktplace,Protective cases for Smartphones,7.04,Telecommunication Costs - Mobiles
18-Dec-19,Finance & Revenues,Amznmktplace,Protective cases for Smartphones,7.03,Telecommunication Costs - Mobiles
24-Dec-19,Finance & Revenues,Amznmktplace,Protective cases for Smartphones,10.32,Telecommunication Costs - Mobiles
24-Dec-19,Finance & Revenues,Amznmktplace,Protective cases for Smartphones,5.16,Telecommunication Costs - Mobiles
24-Dec-19,Finance & Revenues,Amznmktplace,Protective cases for Smartphones,5.16,Telecommunication Costs - Mobiles
24-Dec-19,Finance & Revenues,Amznmktplace,Protective cases for Smartphones,5.16,Telecommunication Costs - Mobiles
02-Dec-19,Finance & Revenues,Amznmktplace Amazon.Co.Uk,Compute Stick for CSC,148.88,Computer Equipment - Purchase
17-Dec-19,Finance & Revenues,Amznmktplace Amazon.Co.Uk,IT Stock,36.63,Computer Equipment - Purchase
02-Dec-19,Finance & Revenues,Amznmktplace Amazon.Co.Uk,Protective cases for Smartphones,5.16,Telecommunication Costs - Mobiles
02-Dec-19,Finance & Revenues,Amznmktplace Amazon.Co.Uk,Protective cases for Smartphones,10.32,Telecommunication Costs - Mobiles
02-Dec-19,Finance & Revenues,Amznmktplace Amazon.Co.Uk,Protective cases for Smartphones,5.16,Telecommunication Costs - Mobiles
02-Dec-19,Finance & Revenues,Amznmktplace Amazon.Co.Uk,Protective cases for Smartphones,10.32,Telecommunication Costs - Mobiles
04-Dec-19,Finance & Revenues,Amznmktplace Amazon.Co.Uk,Protective cases for Smartphones,6.83,Telecommunication Costs - Mobiles
04-Dec-19,Finance & Revenues,Amznmktplace Amazon.Co.Uk,Protective cases for Smartphones,6.82,Telecommunication Costs - Mobiles
09-Dec-19,Finance & Revenues,Amznmktplace Amazon.Co.Uk,Protective cases for Smartphones,9.92,Telecommunication Costs - Mobiles
09-Dec-19,Finance & Revenues,Amznmktplace Amazon.Co.Uk,Protective cases for Smartphones,4.96,Telecommunication Costs - Mobiles
09-Dec-19,Finance & Revenues,Amznmktplace Amazon.Co.Uk,Protective cases for Smartphones,9.92,Telecommunication Costs - Mobiles
09-Dec-19,Finance & Revenues,Amznmktplace Amazon.Co.Uk,Protective cases for Smartphones,4.96,Telecommunication Costs - Mobiles
10-Oct-19,Finance & Revenues,Astranti Financial Tra,Training fees,83.32,Training Expenses
26-Dec-19,Finance & Revenues,Cbt Nuggets Llc,IT Training,47.05,Training Expenses
18-Dec-19,Finance & Revenues,Comms Express Ltd,Data Network switches and Wi-Fi access points,"1,144.84",Computer Consumables and other Minor IT costs
07-Oct-19,Finance & Revenues,Greater Anglia Trains,Train ticket to London,96.67,Training Expenses
15-Nov-19,Finance & Revenues,Greater Anglia Trains,Train fare to London for 4 people,203.67,Training Expenses
04-Dec-19,Finance & Revenues,Kaplan Financial Ltd,AAT Exam & Admin Fee ,35.00,Training Expenses
04-Dec-19,Finance & Revenues,Kaplan Financial Ltd,AAT Exam & Admin Fee ,46.00,Training Expenses
06-Dec-19,Finance & Revenues,Kaplan Financial Ltd,Training fees,155.83,Training Expenses
09-Dec-19,Finance & Revenues,Kenable Ltd,USB C Cables,90.95,Equipment / Furniture / Materials
24-Sep-19,Finance & Revenues,Ncs*cima Vue Exam,Examination fees,185.00,Training Expenses
09-Dec-19,Finance & Revenues,Paypal,IT Stock,4.98,Computer Equipment - Purchase
13-Dec-19,Finance & Revenues,Paypal,IT Stock,12.45,Computer Equipment - Purchase
24-Dec-19,Finance & Revenues,Paypal,Domain renewal,15.99,Computer Software - Purchase
31-Dec-19,Finance & Revenues,Pluralsight,Online training for Powershell,205.32,Training Expenses
06-Dec-19,Finance & Revenues,Service Fees - Fraedom Pty Ltd,Fraedom Card Usage Fees 1/11/19 to 30/11/19,383.15,Computer Software - Maintenance
04-Dec-19,Finance & Revenues,Southend County,CTAX Committal summons,"1,470.00",Legal Services & Fees
06-Dec-19,Finance & Revenues,Southend County,Council Tax and NDR Summons,495.50,Legal Services & Fees
16-Dec-19,Finance & Revenues,Southend County,Council Tax and NDR summons,190.50,Legal Services & Fees
30-Oct-19,Finance & Revenues,Trainline,Train fare to attend session in London,55.83,Training Expenses
17-Dec-19,Finance & Revenues,Www.Aat-Org.Uk,AAT Subscription ,99.00,Employee Expenses
06-Dec-19,Finance & Revenues,Www.Cipfa.Org.Uk/pfmco,Excel Online course ,30.00,Training/Courses Running Costs
11-Dec-19,Finance & Revenues,Www.Irrv.Org.Uk,IRRV Membership ,242.00,Employee Expenses
26-Dec-19,Housing & Community Services,A & E Squire Ltd,2x camlocks for impress stock lockers at stores,17.60,Equipment / Furniture / Materials
13-Dec-19,Housing & Community Services,Amazon Prime,Amazon Prime,7.99,Equipment / Furniture / Materials
04-Dec-19,Housing & Community Services,Amazon.Co.Uk,Laptop sleeve ,5.74,Equipment / Furniture / Materials
09-Dec-19,Housing & Community Services,Amznmktplace,North West AHP bench,79.99,Committee Groups and Forum costs
04-Dec-19,Housing & Community Services,Amznmktplace,Combination lock for food fridge,10.39,Equipment / Furniture / Materials
26-Dec-19,Housing & Community Services,Amznmktplace,Manilla tags for void keys ,2.23,Equipment / Furniture / Materials
02-Dec-19,Housing & Community Services,Amznmktplace,Manager H&S in Constuction,31.75,Publications - Purchase
19-Dec-19,Housing & Community Services,Avanti West Coast,Ticket,33.50,Specific Campaigns / Projects expenditure
05-Dec-19,Housing & Community Services,B&q Direct, 3601086 Sink and waste,38.33,Materials and Supplies - Miscellaneous
31-Dec-19,Housing & Community Services,Belvoir Ipswich,REDACTED,153.75,Services for Clients
11-Dec-19,Housing & Community Services,Booker Limited Ipswich,Milk,3.80,Materials and Supplies - Miscellaneous
16-Dec-19,Housing & Community Services,Booker Limited Ipswich,Milk,3.80,Materials and Supplies - Miscellaneous
18-Dec-19,Housing & Community Services,Booker Limited Ipswich,Milk,3.80,Materials and Supplies - Miscellaneous
23-Dec-19,Housing & Community Services,Booker Limited Ipswich,Milk,7.60,Materials and Supplies - Miscellaneous
19-Dec-19,Housing & Community Services,Bunzl,"Toilet tissue, floor cleaner, antibac wipes, hand wash",129.47,Cleaning Supplies
02-Dec-19,Housing & Community Services,Cadent Gas,REDACTED,870.00,Capital Expenditure
06-Dec-19,Housing & Community Services,Campbell Associate,Windshield for microphones ,65.00,Equipment - Repairs
25-Nov-19,Housing & Community Services,Cpw Locksmiths And Securi,provide lock to scheme,53.85,HRA Special Repairs & Maintenance
25-Nov-19,Housing & Community Services,Cpw Locksmiths And Securi,provide lock to scheme,80.00,HRA Special Repairs & Maintenance
25-Nov-19,Housing & Community Services,Cpw Locksmiths And Securi,provide lock to scheme,85.85,HRA Special Repairs & Maintenance
29-Nov-19,Housing & Community Services,Cpw Locksmiths And Securi,provide lock to scheme,140.00,HRA Special Repairs & Maintenance
11-Dec-19,Housing & Community Services,Cpw Locksmiths And Securi,provide lock to scheme,115.00,HRA Special Repairs & Maintenance
23-Dec-19,Housing & Community Services,Cpw Locksmiths And Securi,provide lock to scheme,80.00,HRA Special Repairs & Maintenance
02-Dec-19,Housing & Community Services,Greater Anglia T/o,Train tickets fleeing Violence Durham,196.95,Services for Clients
12-Dec-19,Housing & Community Services,Greater Anglia T/o,train fare for DV victim,86.10,Services for Clients
11-Dec-19,Housing & Community Services,Greater Anglia Trains,Travel to Alderley Edge for NUG meeting,178.50,Employee Expenses
17-Dec-19,Housing & Community Services,Greater Anglia Trains,Train Fares,81.90,Use Of Public Transport
23-Sep-19,Housing & Community Services,Hotel On Booking.Com Holi,Temp accomodation,441.67,HRA Special Repairs & Maintenance
04-Dec-19,Housing & Community Services,I.D Management Systems,ID cards,105.00,Equipment / Furniture / Materials
10-Dec-19,Housing & Community Services,J2 Efax Plus Service,Monthly fee for use of secure fax system (food parcels),11.00,Miscellaneous Expenses
18-Dec-19,Housing & Community Services,Jessops,Memory stick to back up till computer files,14.16,Equipment / Furniture / Materials
10-Dec-19,Housing & Community Services,Jollyes The Pet Supers,Chain for food fridge,4.82,Equipment / Furniture / Materials
17-Dec-19,Housing & Community Services,Parcel2go_uk,Personal belongings,25.09,Specific Campaigns / Projects expenditure
17-Dec-19,Housing & Community Services,Parcel2go_uk,belongings to chesterfield,11.10,Specific Campaigns / Projects expenditure
03-Dec-19,Housing & Community Services,Possessionclaim.Go,possession claim on line,325.00,Legal Services & Fees
03-Dec-19,Housing & Community Services,Possessionclaim.Go,possession claim on line,325.00,Legal Services & Fees
03-Dec-19,Housing & Community Services,Possessionclaim.Go,possession claim on line,325.00,Legal Services & Fees
23-Dec-19,Housing & Community Services,Post Office Counter,Recorded delivery Scheme TV licence renewal,3.77,Stationery
04-Dec-19,Housing & Community Services,Pp*jacqsartisa,Soap for resale at TIC,370.90,Goods for Resale - Retail
09-Dec-19,Housing & Community Services,Premier Farnell,Measuring Meter ,69.94,Equipment / Furniture / Materials
12-Dec-19,Housing & Community Services,Rs Components,Filter for water heater Pump main Kitchen ,3.37,Equipment / Furniture / Materials
12-Dec-19,Housing & Community Services,Rs Components,Filter Housing for water Pump main Kitchen,32.87,Equipment / Furniture / Materials
23-Dec-19,Housing & Community Services,Ryder-Davies & Partners,Breeding Licence inspection,258.79,Non Contracted_Professional Services
16-Dec-19,Housing & Community Services,Sainsburys Petrol,unleaded Fuel for small Plant Equipment,13.76,Equipment / Furniture / Materials
24-Dec-19,Housing & Community Services,Sainsburys S/mkt,Milk and Coffee for staff,4.80,Materials and Supplies - Miscellaneous
02-Dec-19,Housing & Community Services,Sainsburys S/mkts,Milk & Sweetner,8.80,Materials and Supplies - Miscellaneous
04-Dec-19,Housing & Community Services,Sainsburys S/mkts,Milk for staff,0.80,Materials and Supplies - Miscellaneous
09-Dec-19,Housing & Community Services,Sainsburys S/mkts,milk for staff,0.80,Materials and Supplies - Miscellaneous
09-Dec-19,Housing & Community Services,Sainsburys S/mkts,Milk/De-caff coffee,8.40,Materials and Supplies - Miscellaneous
13-Dec-19,Housing & Community Services,Sainsburys S/mkts,milk for staff,0.80,Materials and Supplies - Miscellaneous
20-Dec-19,Housing & Community Services,Sainsburys S/mkts,Milk for staff,0.80,Materials and Supplies - Miscellaneous
11-Dec-19,Housing & Community Services,Screwfix Direct,Voltage detector pens,38.88,Equipment / Furniture / Materials
10-Dec-19,Housing & Community Services,Securitysafetyproducts,Fixing kit for Maple Park CCTV signs,46.25,Equipment / Furniture / Materials
06-Dec-19,Housing & Community Services,Showerdoc,3633654 whale pump sensor x 2,104.94,Materials and Supplies - Miscellaneous
13-Dec-19,Housing & Community Services,Sitebox Limited,2x working at height harnesses for mobile scaffolds,51.50,Equipment / Furniture / Materials
20-Dec-19,Housing & Community Services,Southend County,Warrant entry,20.00,Costs Recoverable
09-Dec-19,Housing & Community Services,Sp * Damp-Meter-Direct,Moisture Meter,192.00,Equipment / Furniture / Materials
20-Dec-19,Housing & Community Services,The Works,Tenants' Diaries,20.20,Housing  - other Costs
19-Dec-19,Housing & Community Services,Tvlicensing.Co.Uk,TV License,154.50,Subscriptions - Service Related
20-Dec-19,Housing & Community Services,Waitrose Ltd,Milk,1.92,Materials and Supplies - Miscellaneous
09-Dec-19,Housing & Community Services,Waitrose Ltd,Milk for CCC,1.15,Stationery
06-Dec-19,Housing & Community Services,Www.Banneruk.Com,Stationery,121.39,Stationery
24-Dec-19,Housing & Community Services,Www.Banneruk.Com,Stationery,54.68,Stationery
26-Dec-19,Housing & Community Services,Www.Ceilingpanels.Co.U,Lockmaster Keep set PLK 118/119 PLS72 3633849 ,20.83,Materials and Supplies - Miscellaneous
24-Dec-19,Housing & Community Services,Www.Toolstation.Com,6x Draper Security Bit Sets ,24.95,Equipment / Furniture / Materials
26-Dec-19,Housing & Community Services,Www.Toolstation.Com,Refund for Hand tools ,-61.22,Equipment / Furniture / Materials
18-Dec-19,Housing & Community Services,Www.Toolstation.Com, Sheltered Reydon House Post Box,16.65,HRA Special Repairs & Maintenance
19-Dec-19,People & Governance,Acca,ACCA membership,258.00,Employee Expenses
02-Dec-19,People & Governance,Amznmktplace Amazon.Co.Uk,Loop system for Older Persons' Crucial Crew,69.98,Specific Campaigns / Projects expenditure
04-Dec-19,People & Governance,Arts Marketing Ass,Membership for Arts Marketing Association,75.00,Training Expenses
11-Dec-19,People & Governance,Digital Hearing Care Solu,USB conversion headset for hearing aid user,170.00,Equipment / Furniture / Materials
05-Dec-19,People & Governance,Elegance Ipswich Ltd,REDACTED,383.00,Specific Campaigns / Projects expenditure
20-Dec-19,People & Governance,Elmers Hardware,REDACTED,390.00,Specific Campaigns / Projects expenditure
18-Dec-19,People & Governance,Eoe Co-Op,Chocolate for photo op,26.67,Advertising/Publicity
02-Dec-19,People & Governance,Esso Mrh Maidstone Mwsa,fuel,36.64,Direct Transport Costs
22-Nov-19,People & Governance,Eurotunnel Presale,euro tunnel charge,0.83,Miscellaneous Functions & Events
09-Dec-19,People & Governance,Facebk *2frmeqw7j2,Facebook Advertising,29.29,Advertising/Publicity
09-Dec-19,People & Governance,Facebk *2frmeqw7j2,Facebook Advertising,17.37,Advertising/Publicity
09-Dec-19,People & Governance,Facebk *2frmeqw7j2,Facebook Advertising,21.49,Advertising/Publicity
09-Dec-19,People & Governance,Facebk *2frmeqw7j2,Facebook Advertising,10.62,Advertising/Publicity
25-Nov-19,People & Governance,Facebk *4ra9tpj8j2,Facebook Advertising,359.52,Advertising/Publicity
25-Nov-19,People & Governance,Facebk *4ra9tpj8j2,Facebook Advertising,77.43,Advertising/Publicity
25-Nov-19,People & Governance,Facebk *4ra9tpj8j2,Facebook Advertising,29.38,Advertising/Publicity
25-Nov-19,People & Governance,Facebk *4ra9tpj8j2,Facebook Advertising,0.33,Advertising/Publicity
25-Nov-19,People & Governance,Facebk *4ra9tpj8j2,Facebook Advertising,16.67,Advertising/Publicity
02-Dec-19,People & Governance,Facebk *aa26fqn8j2,Facebook Advertising,273.87,Advertising/Publicity
02-Dec-19,People & Governance,Facebk *aa26fqn8j2,Facebook Advertising,101.68,Advertising/Publicity
02-Dec-19,People & Governance,Facebk *aa26fqn8j2,Facebook Advertising,11.97,Advertising/Publicity
02-Dec-19,People & Governance,Facebk *aa26fqn8j2,Facebook Advertising,22.18,Advertising/Publicity
02-Dec-19,People & Governance,Facebk *aa26fqn8j2,Facebook Advertising,4.22,Advertising/Publicity
02-Dec-19,People & Governance,Facebk *aa26fqn8j2,Facebook Advertising,69.41,Advertising/Publicity
27-Dec-19,People & Governance,Facebk *apkj8qn7j2,Facebook Advertising,420.88,Advertising/Publicity
27-Dec-19,People & Governance,Facebk *apkj8qn7j2,Facebook Advertising,25.02,Advertising/Publicity
27-Dec-19,People & Governance,Facebk *apkj8qn7j2,Facebook Advertising,37.42,Advertising/Publicity
04-Dec-19,People & Governance,Facebk *hdhwhqa8j2,Facebook Advertising,86.50,Advertising/Publicity
04-Dec-19,People & Governance,Facebk *hdhwhqa8j2,Facebook Advertising,290.37,Advertising/Publicity
04-Dec-19,People & Governance,Facebk *hdhwhqa8j2,Facebook Advertising,50.43,Advertising/Publicity
04-Dec-19,People & Governance,Facebk *hdhwhqa8j2,Facebook Advertising,4.04,Advertising/Publicity
04-Dec-19,People & Governance,Facebk *hdhwhqa8j2,Facebook Advertising,30.41,Advertising/Publicity
04-Dec-19,People & Governance,Facebk *hdhwhqa8j2,Facebook Advertising,21.57,Advertising/Publicity
17-Dec-19,People & Governance,Facebk *jgh49qs7j2,Facebook Advertising,86.50,Advertising/Publicity
17-Dec-19,People & Governance,Facebk *jgh49qs7j2,Facebook Advertising,290.37,Advertising/Publicity
17-Dec-19,People & Governance,Facebk *jgh49qs7j2,Facebook Advertising,50.43,Advertising/Publicity
17-Dec-19,People & Governance,Facebk *jgh49qs7j2,Facebook Advertising,4.04,Advertising/Publicity
17-Dec-19,People & Governance,Facebk *jgh49qs7j2,Facebook Advertising,30.41,Advertising/Publicity
17-Dec-19,People & Governance,Facebk *jgh49qs7j2,Facebook Advertising,21.57,Advertising/Publicity
23-Dec-19,People & Governance,Facebk *ret89r68j2,Facebook Advertising,10.57,Advertising/Publicity
23-Dec-19,People & Governance,Facebk *ret89r68j2,Facebook Advertising,350.21,Advertising/Publicity
23-Dec-19,People & Governance,Facebk *ret89r68j2,Facebook Advertising,27.20,Advertising/Publicity
23-Dec-19,People & Governance,Facebk *ret89r68j2,Facebook Advertising,70.42,Advertising/Publicity
23-Dec-19,People & Governance,Facebk *ret89r68j2,Facebook Advertising,21.51,Advertising/Publicity
23-Dec-19,People & Governance,Facebk *ret89r68j2,Facebook Advertising,3.42,Advertising/Publicity
24-Dec-19,People & Governance,Facebk *tzul6qn7j2,Facebook Advertising,14.43,Advertising/Publicity
24-Dec-19,People & Governance,Facebk *tzul6qn7j2,Facebook Advertising,377.51,Advertising/Publicity
24-Dec-19,People & Governance,Facebk *tzul6qn7j2,Facebook Advertising,17.23,Advertising/Publicity
24-Dec-19,People & Governance,Facebk *tzul6qn7j2,Facebook Advertising,74.16,Advertising/Publicity
04-Nov-19,People & Governance,Facebk *v2dhdps7j2,Facebook Advertising,413.02,Advertising/Publicity
04-Nov-19,People & Governance,Facebk *v2dhdps7j2,Facebook Advertising,6.43,Advertising/Publicity
04-Nov-19,People & Governance,Facebk *v2dhdps7j2,Facebook Advertising,53.06,Advertising/Publicity
04-Nov-19,People & Governance,Facebk *v2dhdps7j2,Facebook Advertising,10.82,Advertising/Publicity
28-Oct-19,People & Governance,Facebk *y64ukpw7j2,Facebook Advertising,278.82,Advertising/Publicity
28-Oct-19,People & Governance,Facebk *y64ukpw7j2,Facebook Advertising,2.63,Advertising/Publicity
28-Oct-19,People & Governance,Facebk *y64ukpw7j2,Facebook Advertising,46.96,Advertising/Publicity
28-Oct-19,People & Governance,Facebk *y64ukpw7j2,Facebook Advertising,154.92,Advertising/Publicity
31-Dec-19,People & Governance,Facebk *z4kqnqs8j2,Facebook Advertising,444.29,Advertising/Publicity
31-Dec-19,People & Governance,Facebk *z4kqnqs8j2,Facebook Advertising,33.40,Advertising/Publicity
31-Dec-19,People & Governance,Facebk *z4kqnqs8j2,Facebook Advertising,5.64,Advertising/Publicity
07-Nov-19,People & Governance,Facebk *zbku9pn7j2,Facebook Advertising,88.45,Advertising/Publicity
07-Nov-19,People & Governance,Facebk *zbku9pn7j2,Facebook Advertising,2.42,Advertising/Publicity
07-Nov-19,People & Governance,Facebk *zbku9pn7j2,Facebook Advertising,13.80,Advertising/Publicity
19-Dec-19,People & Governance,Global/Primesight,Brendan Cole Billboard,484.00,Advertising/Publicity
27-Dec-19,People & Governance,Google,Google Ads - exhibition,215.11,Advertising/Publicity
13-Nov-19,People & Governance,Greater Anglia Trains,Use Of Public Transport To Training,50.67,Use Of Public Transport
02-Dec-19,People & Governance,Greater Anglia Trains,train fare to user group in London,64.30,Use Of Public Transport
12-Dec-19,People & Governance,Lakeland Limited,cleaning brushes for silver,3.32,Miscellaneous Functions & Events
14-Nov-19,People & Governance,Maharani,Mayor's Charity Curry Event Oct 2019,466.67,Mayoral Related Expenditure
28-Oct-19,People & Governance,Mailchimp,MailChimp Subscription,261.66,Subscriptions - Service Related
13-Nov-19,People & Governance,Mailchimp,MailChimp Subscription,465.90,Subscriptions - Service Related
27-Nov-19,People & Governance,Mailchimp,MailChimp Subscription,260.91,Subscriptions - Service Related
13-Dec-19,People & Governance,Mailchimp,MailChimp Subscription,454.24,Subscriptions - Service Related
27-Dec-19,People & Governance,Mailchimp,MailChimp Subscription,259.52,Subscriptions - Service Related
02-Dec-19,People & Governance,Marks&spencer Plc,drinks reception,2.92,Miscellaneous Functions & Events
02-Dec-19,People & Governance,Marks&spencer Plc,pot plant ,6.67,Miscellaneous Functions & Events
04-Dec-19,People & Governance,Marks&spencer Plc,cake for long service awards,4.45,Miscellaneous Functions & Events
12-Dec-19,People & Governance,Marks&spencer Plc,cake for event,13.00,Miscellaneous Functions & Events
20-Dec-19,People & Governance,Marks&spencer Plc,mince pies for mansion event,25.40,Miscellaneous Functions & Events
02-Dec-19,People & Governance,Sainsburys S/mkt,Water/mints/sweets for Arras trip,5.65,Miscellaneous Functions & Events
05-Dec-19,People & Governance,Sainsburys S/mkt,Committee Meeting Biscuits,8.54,Miscellaneous Functions & Events
20-Dec-19,People & Governance,Sainsburys S/mkt,soft drink and fruit for mansion event,9.12,Miscellaneous Functions & Events
03-Dec-19,People & Governance,Sanef 4221001,French road toll,7.16,Miscellaneous Functions & Events
03-Dec-19,People & Governance,Sanef Autoroute,French road Toll,7.16,Miscellaneous Functions & Events
24-Oct-19,People & Governance,Shopify,Shopify,23.26,Financial Fees & Services
25-Nov-19,People & Governance,Shopify,Shopify,23.29,Financial Fees & Services
23-Dec-19,People & Governance,Shopify* 73064821,Shopify,23.01,Financial Fees & Services
20-Nov-19,People & Governance,Signs For You Ltd,Knife Bin Sticker and Reprint Ed Trail Stickers,29.26,Equipment / Furniture / Materials
20-Nov-19,People & Governance,Signs For You Ltd,Knife Bin Sticker and Reprint Ed Trail Stickers,29.35,Printing Costs
02-Dec-19,People & Governance,Spring Road,Fuel,14.87,Direct Transport Costs
10-Dec-19,People & Governance,Spring Road,fuel for mayoral car,36.10,Direct Transport Costs
18-Nov-19,People & Governance,"Sprout Social, Inc",Social Media Management,660.13,Subscriptions - Service Related
11-Dec-19,People & Governance,"Sprout Social, Inc",Social Media Management,15.41,Subscriptions - Service Related
17-Dec-19,People & Governance,"Sprout Social, Inc",Social Media Management,714.92,Subscriptions - Service Related
19-Dec-19,People & Governance,"Sprout Social, Inc",Social Media Management,18.39,Subscriptions - Service Related
29-Oct-19,People & Governance,Sq *sam Lunch,Teacher Evening Refreshments,300.00,Specific Campaigns / Projects expenditure
16-Dec-19,People & Governance,Tesco Store 2748,Ink to be recharged onto Stage,43.33,Computer Consumables and other Minor IT costs
24-Dec-19,People & Governance,Twitter Online Ads,Xmas Offer 2019 Twitter Ads,20.00,Advertising/Publicity
27-Dec-19,People & Governance,Twitter Online Ads,Xmas Offer 2019 Twitter Ads,66.35,Advertising/Publicity
12-Dec-19,People & Governance,Vertas Ipswich,Lunch for Apprentice course,66.00,Training Expenses
04-Dec-19,People & Governance,Waitrose Ltd,milk biscuits for 4YP,2.54,Miscellaneous Functions & Events
09-Dec-19,People & Governance,Waitrose Ltd,Coffee biscuits for WASSUP group,6.93,Miscellaneous Functions & Events
13-Dec-19,People & Governance,Waitrose Ltd,cake biscuits for the election,7.15,Miscellaneous Functions & Events
13-Dec-19,People & Governance,Waitrose Ltd,cake for the election,4.90,Miscellaneous Functions & Events
31-Dec-19,People & Governance,Waitrose Ltd,milk for mayoral reception,0.96,Miscellaneous Functions & Events
12-Dec-19,People & Governance,Wilko Retail Limited,"Soda crystals , scissors",3.33,Miscellaneous Functions & Events
19-Dec-19,People & Governance,Www.Aat-Org.Uk,AAT membership,165.00,Employee Expenses
12-Nov-19,People & Governance,Www.Banneruk.Com,4x canon PG545/546,203.48,Computer Consumables and other Minor IT costs
22-Nov-19,People & Governance,Www.Banneruk.Com,Sheltered Hsg Canon inks Brother Drum unit iPCity,146.70,Computer Consumables and other Minor IT costs
22-Nov-19,People & Governance,Www.Banneruk.Com,Sheltered Hsg Canon inks Brother Drum unit iPCity,76.96,Computer Consumables and other Minor IT costs
28-Nov-19,People & Governance,Www.Banneruk.Com,4x pg545XL 4xCL546XL,76.06,Computer Consumables and other Minor IT costs
02-Dec-19,People & Governance,Www.Banneruk.Com,IpCity Brother Toner,40.65,Computer Consumables and other Minor IT costs
13-Dec-19,People & Governance,Www.Banneruk.Com,Canon CLi55XL M,29.98,Computer Consumables and other Minor IT costs
17-Dec-19,People & Governance,Www.Banneruk.Com,Canon571 CMYK multi pak ,138.40,Computer Consumables and other Minor IT costs
17-Dec-19,People & Governance,Www.Banneruk.Com, HP304XL/ PG545XL 5x PGi 525PGBK ,44.10,Computer Consumables and other Minor IT costs
17-Dec-19,People & Governance,Www.Banneruk.Com, HP304XL/ PG545XL 5x PGi 525PGBK ,94.95,Computer Consumables and other Minor IT costs
24-Dec-19,People & Governance,Www.Banneruk.Com,HP MLT-D111S Black toner,72.54,Computer Consumables and other Minor IT costs
26-Dec-19,People & Governance,Www.Banneruk.Com,HP 654aYellow Toner-Leo Licensing/ Canon729M ,294.95,Computer Consumables and other Minor IT costs
26-Dec-19,People & Governance,Www.Banneruk.Com,HP 654aYellow Toner-Leo Licensing/ Canon729M,65.28,Computer Consumables and other Minor IT costs
04-Dec-19,People & Governance,Www.Paper.Co.Uk,Paper Supply for the Print Room use,120.21,Miscellaneous Stock  - Purchases
12-Dec-19,People & Governance,Www.Paper.Co.Uk,Paper for the print room use,204.88,Miscellaneous Stock  - Purchases
17-Dec-19,People & Governance,Www.Paper.Co.Uk,Paper for the Print Room use,211.27,Miscellaneous Stock  - Purchases
02-Dec-19,People & Governance,Www.Stannp.Com,Direct mail for Cinderella panto,"1,130.88",Advertising/Publicity
06-Dec-19,People & Governance,Www.Ukpos.Com,"A2 ABoards, to be refunded and recharged for Waste",100.50,Advertising/Publicity
10-Dec-19,People & Governance,Www.Ukpos.Com,"Partial Credit for previous order, supplied cheaper product",-14.66,Advertising/Publicity
